bitfinex/quotes_ETHUSD_20250112
["timestamp","ask_amount","ask_price","bid_price","bid_amount"]
[1736714842052,0.0075,3281.2,3279.9,0.7995]
[1736714842215,2.13353,3281.0,3280.1,0.7995]
[1736714842416,2.13358,3280.9,3280.1,0.7995]
[1736714843613,3.0075,3281.2,3280.2,0.04725782]
[1736714843961,2.13364,3280.8,3280.2,0.04725782]
[1736714844320,2.13364,3280.8,3280.1,0.7995]
[1736714844520,2.13364,3280.8,3280.2,0.04725782]
[1736714844717,2.13364,3280.8,3280.1,0.7995]
[1736714844920,2.13364,3280.8,3280.2,0.04725782]
[1736714845133,2.13364,3280.8,3280.1,0.7995]
[1736714845334,2.13364,3280.8,3280.2,0.04725782]
[1736714845539,2.13364,3280.8,3280.1,0.7995]
[1736714845745,2.13364,3280.8,3280.2,0.04725782]
[1736714845950,2.13364,3280.8,3280.1,0.7995]
[1736714846361,2.13364,3280.8,3280.2,0.04725782]
[1736714848362,3.0,3281.1,3280.2,0.04725782]
[1736714848565,2.1335,3281.0,3280.2,0.04725782]
[1736714848763,2.13355,3281.0,3280.2,0.04725782]
[1736714849561,5.13338,3281.2,3280.3,0.7995]
[1736714849765,5.13338,3281.2,3280.4,0.3285555]
[1736714849962,5.13338,3281.2,3280.4,0.37550671]
[1736714850149,2.1335,3281.0,3280.4,0.34502599]
[1736714850355,2.1335,3281.0,3280.4,0.04695121]
[1736714850759,2.1335,3281.0,3280.3,0.7995]
[1736714851364,1.62984903,3281.1,3280.3,0.7995]
[1736714851864,1.62984903,3281.1,3280.4,0.0469028]
[1736714853582,1.62984903,3281.1,3280.3,0.7995]
[1736714853935,1.62984903,3281.1,3280.4,0.0469028]
[1736714854242,1.62984903,3281.1,3280.5,0.7944]
[1736714854675,1.71984903,3281.1,3280.6,0.3732581]
[1736714856443,1.71984903,3281.1,3280.6,0.07738212]
[1736714856776,1.71984903,3281.1,3280.7,0.7944]
[1736714857581,1.71984903,3281.1,3280.8,0.0469028]
[1736714858858,1.71984903,3281.1,3280.9,0.7944]
[1736714859187,1.71984903,3281.1,3281.0,0.04656399]
[1736714859384,1.71984903,3281.1,3281.0,0.34706489]
[1736714860080,1.71984903,3281.1,3281.0,1.14146489]
[1736714863361,1.71984903,3281.1,3281.0,0.84096399]
[1736714865074,0.09,3281.1,3281.0,2.98195399]
[1736714865272,0.09,3281.1,3281.0,3.01242407]
[1736714865477,0.09,3281.1,3281.0,2.98195399]
[1736714867893,0.09,3281.1,3281.0,3.01242405]
[1736714868093,5.13282,3282.1,3281.0,3.59135079]
[1736714868094,0.09,3282.0,3281.0,3.59135079]
[1736714868270,0.09,3282.1,3281.4,2.13322]
[1736714868601,0.09,3282.1,3281.5,0.87070633]
[1736714870799,0.09,3282.2,3281.7,2.13303]
[1736714870978,0.09,3282.2,3281.8,1.007703]
[1736714871506,0.09,3282.2,3281.9,0.04583806]
[1736714871864,0.09,3282.2,3281.8,1.007703]
[1736714872076,0.09,3282.2,3282.0,0.04583806]
[1736714872299,0.09,3282.2,3281.8,1.007703]
[1736714872502,0.09,3282.2,3282.1,0.04583806]
[1736714872665,0.09,3282.2,3281.9,0.3140733]
[1736714873177,0.09,3282.2,3282.0,0.04583806]
[1736714875826,0.8668,3282.2,3282.0,0.04583806]
[1736714876025,0.8668,3282.2,3281.6,0.7991]
[1736714876430,0.8668,3282.2,3281.7,0.04583806]
[1736714876783,0.09,3282.2,3281.7,0.04583806]
[1736714878426,0.09,3282.2,3281.7,0.07630589]
[1736714878632,0.09,3282.2,3281.6,0.7991]
[1736714878800,0.09,3282.2,3281.8,0.04422555]
[1736714879150,0.09,3282.2,3281.6,0.7991]
[1736714879331,0.09,3282.2,3281.9,0.04422555]
[1736714879502,0.09,3282.2,3281.6,0.7991]
[1736714879702,0.09,3282.2,3282.0,0.04422555]
[1736714880017,0.09,3282.2,3282.1,0.04422555]
[1736714880387,0.09,3282.2,3281.6,0.7991]
[1736714880592,0.09,3282.2,3282.1,0.04422555]
[1736714880793,0.09,3282.2,3281.6,0.7991]
[1736714881027,0.09,3282.2,3282.1,0.04422555]
[1736714881327,0.09,3282.2,3281.6,0.7991]
[1736714881493,0.09,3282.2,3282.1,0.04422555]
[1736714882028,0.09,3282.2,3281.7,0.293226]
[1736714882217,0.09,3282.2,3282.1,0.04422555]
[1736714882532,0.09,3282.2,3281.7,0.293226]
[1736714882691,0.09,3282.2,3282.1,0.04422555]
[1736714882900,0.09,3282.2,3281.7,0.293226]
[1736714883102,0.09,3282.2,3282.1,0.04422555]
[1736714883338,0.09,3282.2,3281.9,0.03046654]
[1736714883499,0.09,3282.2,3282.1,0.04422555]
[1736714883700,0.09,3282.2,3281.9,0.03046654]
[1736714883939,0.09,3282.2,3282.1,0.04422555]
[1736714884123,0.09,3282.2,3281.9,0.03046654]
[1736714884614,0.09,3282.2,3282.0,0.04422555]
[1736714886548,0.09,3282.2,3281.6,0.7991]
[1736714886842,0.09,3282.2,3281.7,0.04422555]
[1736714888722,0.09,3282.2,3281.7,0.07469216]
[1736714888931,0.09,3282.2,3281.8,0.30068622]
[1736714889122,0.09,3282.2,3282.0,0.7991]
[1736714889325,0.09,3282.2,3282.1,0.03046566]
[1736714889527,0.09,3282.2,3282.1,0.07469121]
[1736714889929,0.09,3282.2,3282.1,0.04422555]
[1736714890112,0.09,3282.2,3282.1,0.34184611]
[1736714892019,0.09,3282.2,3282.1,0.37231079]
[1736714892417,0.09,3282.2,3282.1,2.20747023]
[1736714892622,0.09,3282.2,3282.1,3.02387023]
[1736714893558,0.09,3282.2,3282.1,0.86062555]
[1736714907083,0.09,3282.2,3282.1,0.89108963]
[1736714914497,0.09,3282.2,3282.1,3.02386963]
[1736714914700,0.09,3282.2,3282.1,3.52957066]
[1736714915203,0.09,3282.2,3282.1,1.36632658]
[1736714918103,0.09,3282.2,3282.1,1.39679081]
[1736714919217,0.09,3282.2,3282.1,0.54992658]
[1736714919410,0.09,3282.2,3282.1,0.04422555]
[1736714919606,0.09,3282.2,3281.9,0.224]
[1736714919807,0.09,3282.2,3282.0,0.07280573]
[1736714919982,0.09,3282.2,3282.0,1.27733741]
[1736714920179,0.09,3282.2,3282.1,2.90808]
[1736714920373,0.09,3282.2,3282.1,3.34902174]
[1736714920583,0.09,3282.2,3282.1,3.39136207]
[1736714921398,0.09,3282.2,3282.1,3.39886207]
[1736714922415,0.09,3282.2,3282.1,15.31886207]
[1736714923321,0.09,3282.9,3282.4,2.13256]
[1736714923636,0.09,3282.9,3282.5,1.49019176]
[1736714924707,0.09,3282.9,3282.5,1.45973339]
[1736714925084,0.09,3282.9,3282.5,0.25520171]
[1736714933847,0.09,3282.9,3282.5,0.04194571]
[1736714934225,0.09,3282.9,3282.3,0.59813962]
[1736714934423,0.09,3282.9,3282.6,0.04179272]
[1736714934597,0.09,3282.9,3282.3,0.59813962]
[1736714934796,0.09,3282.9,3282.4,0.04179272]
[1736714935044,0.09,3282.9,3282.4,1.51105495]
[1736714939381,0.09,3282.9,3282.4,0.04179272]
[1736714940802,0.09,3282.9,3282.4,0.07225327]
[1736714941505,0.09,3282.9,3282.4,2.20482327]
[1736714945117,0.09,3282.9,3282.4,7.58482327]
[1736714945322,0.09,3282.9,3282.4,7.55436272]
[1736714945522,0.09,3282.9,3282.5,0.03046061]
[1736714945908,0.09,3282.9,3282.6,0.04161555]
[1736714949619,0.09,3282.9,3282.4,8.7482734]
[1736714949933,0.09,3282.9,3282.5,0.04156725]
[1736714951150,0.09,3282.9,3282.5,0.07202792]
[1736714951346,0.09,3282.9,3282.6,0.88203013]
[1736714951911,0.09,3282.9,3282.7,0.04156725]
[1736714954446,2.03273168,3282.8,3282.7,0.04156725]
[1736714954655,2.03273168,3282.8,3282.0,5.38]
[1736714954861,2.03273168,3282.8,3282.7,0.04007925]
[1736714955019,2.45823485,3282.8,3282.1,0.0304651]
[1736714955377,4.16506168,3282.8,3282.2,0.04007925]
[1736714955754,4.16506168,3282.8,3282.0,5.38]
[1736714955938,4.16506168,3282.8,3282.3,0.04007925]
[1736714956265,4.16506168,3282.8,3282.4,0.04007925]
[1736714956567,0.8282,3282.8,3282.4,0.04007925]
[1736714956738,0.8282,3282.8,3282.1,0.03046521]
[1736714956941,0.8282,3282.8,3282.5,0.04007925]
[1736714957160,0.8282,3282.8,3282.1,0.03046521]
[1736714957357,0.8282,3282.8,3282.6,0.04007925]
[1736714957693,0.8282,3282.8,3282.7,0.04007925]
[1736714958043,0.8282,3282.8,3282.1,0.03046521]
[1736714958290,0.8282,3282.8,3282.7,0.04007925]
[1736714958590,0.8282,3282.8,3282.0,5.38]
[1736714959091,0.8282,3282.8,3282.1,0.04030471]
[1736714959480,2.03273168,3282.8,3282.1,0.04030471]
[1736714962861,0.8282,3282.8,3282.1,0.07076997]
[1736714963212,0.8282,3282.8,3282.2,1.336577]
[1736714963702,0.8282,3282.8,3282.3,0.04024834]
[1736714964067,0.8282,3282.8,3282.3,2.1631122]
[1736714964393,0.8282,3282.8,3282.4,0.04024834]
[1736714964970,0.8282,3282.8,3282.4,2.17281834]
[1736714965458,0.8282,3282.8,3282.4,0.04024834]
[1736714965670,0.09,3282.9,3282.4,0.39424709]
[1736714966061,0.09,3283.0,3282.4,0.39424709]
[1736714966546,0.09,3283.0,3282.5,0.0304622]
[1736714967056,0.09,3283.0,3282.6,0.83175638]
[1736714967363,0.09,3283.0,3282.7,2.13237]
[1736714967695,0.09,3283.2,3282.8,5.67641264]
[1736714967850,0.09,3283.2,3282.8,5.71666902]
[1736714970752,0.09,3283.2,3283.0,0.7915]
[1736714971368,0.09,3283.2,3283.1,0.04025638]
[1736714972055,0.09,3283.5,3283.1,0.04025638]
[1736714973470,1.29453168,3283.5,3283.1,0.04025638]
[1736714973792,1.20453168,3283.3,3283.1,0.04025638]
[1736714974109,1.20453168,3283.3,3283.2,0.03989409]
[1736714974475,3.33653168,3283.3,3282.8,5.38]
[1736714974805,2.9093,3283.3,3283.2,0.03989409]
[1736714975090,2.9093,3283.3,3282.8,5.38]
[1736714975091,2.13225,3283.0,3282.8,5.38]
[1736714975394,0.7773,3282.9,3282.8,5.38]
[1736714975781,0.7773,3282.9,3282.8,5.41999069]
[1736714976192,2.90956,3282.9,3282.8,0.03999069]
[1736714976418,4.52550085,3282.9,3282.8,0.03999069]
[1736714976709,4.52550085,3282.9,3282.1,5.38]
[1736714976858,1.20453168,3282.7,3282.1,5.38]
[1736714977057,1.20453168,3282.7,3282.2,0.03993432]
[1736714977992,2.13245,3282.6,3282.2,0.03993432]
[1736714981014,2.90965,3282.8,3282.2,0.03993432]
[1736714981510,2.13242,3282.7,3282.2,0.03993432]
[1736715006158,3.33726642,3282.6,3282.2,0.03993432]
[1736715006312,2.54392664,3282.6,3282.2,0.03993432]
[1736715008801,2.90965,3282.8,3282.2,0.03993432]
[1736715009095,0.7773,3282.8,3282.2,0.03993432]
[1736715009265,2.1324,3282.7,3282.2,0.03993432]
[1736715010504,4.628829,3282.9,3282.3,0.7922]
[1736715010797,4.628829,3282.9,3282.4,0.04062679]
[1736715011096,1.628829,3282.9,3282.5,0.7922]
[1736715011301,1.628829,3282.9,3282.7,0.7922]
[1736715011870,1.628829,3282.9,3282.8,0.04053821]
[1736715012267,1.628829,3282.9,3282.7,0.7922]
[1736715012471,1.628829,3282.9,3282.8,0.04053821]
[1736715013175,1.628829,3282.9,3282.7,0.7922]
[1736715013375,1.628829,3282.9,3282.8,0.67843907]
[1736715013952,1.628829,3282.9,3282.8,1.47293907]
[1736715015752,1.628829,3282.9,3282.8,4.81005549]
[1736715019401,1.628829,3282.9,3282.8,5.43105147]
[1736715020023,1.628829,3282.9,3282.8,10.19005549]
[1736715021409,0.09,3283.5,3283.0,2.13214]
[1736715021730,0.09,3283.5,3283.2,0.7945]
[1736715022420,0.09,3283.5,3283.3,0.03916955]
[1736715022624,0.09,3283.5,3283.2,0.7945]
[1736715022825,0.09,3283.5,3283.4,0.03916955]
[1736715022984,0.09,3283.5,3283.2,0.7945]
[1736715023179,0.09,3283.5,3283.4,0.03915346]
[1736715023394,0.09,3283.5,3283.2,0.7945]
[1736715023620,0.09,3283.5,3283.4,0.03915346]
[1736715023781,0.09,3283.5,3283.2,0.7945]
[1736715023980,0.09,3283.5,3283.4,0.03912931]
[1736715024502,0.09,3283.5,3283.2,0.7945]
[1736715024709,0.09,3283.5,3283.4,0.03912931]
[1736715025022,0.09,3283.5,3283.2,0.7945]
[1736715025223,0.09,3283.5,3283.4,0.03913736]
[1736715025381,0.09,3283.5,3283.2,0.7945]
[1736715025780,0.09,3283.5,3283.3,0.03913736]
[1736715026036,0.09,3283.7,3283.3,0.03913736]
[1736715026249,0.09,3283.7,3283.2,0.7945]
[1736715026403,0.09,3283.7,3283.4,0.03913736]
[1736715026603,0.09,3283.7,3283.2,0.7945]
[1736715026802,0.09,3283.7,3283.5,0.03913736]
[1736715027115,0.09,3283.7,3283.2,0.7945]
[1736715027715,0.09,3283.7,3283.3,0.03913736]
[1736715028101,0.09,3283.7,3283.2,0.7945]
[1736715028408,0.09,3283.7,3283.4,0.03913736]
[1736715028601,0.09,3283.7,3283.2,0.7945]
[1736715028802,0.09,3283.7,3283.5,0.03913736]
[1736715029002,0.09,3283.7,3283.2,0.7945]
[1736715029232,0.09,3283.7,3283.6,0.03913736]
[1736715029433,0.09,3283.7,3283.2,0.7945]
[1736715029638,0.09,3283.7,3283.6,0.03913736]
[1736715029842,0.09,3283.7,3283.2,0.7945]
[1736715030002,0.09,3283.7,3283.6,0.03913736]
[1736715030200,0.09,3283.7,3283.2,0.7945]
[1736715030551,0.09,3283.7,3283.6,0.03913736]
[1736715030717,0.09,3283.7,3283.2,0.7945]
[1736715030906,0.09,3283.7,3283.3,0.03913736]
[1736715031106,0.09,3283.7,3283.2,0.7945]
[1736715031337,0.09,3283.7,3283.3,0.03913736]
[1736715031537,0.09,3283.7,3283.2,0.7945]
[1736715031847,0.09,3283.7,3283.3,0.03913736]
[1736715032051,0.09,3283.8,3283.2,0.7945]
[1736715032291,0.09,3283.8,3283.4,0.03913736]
[1736715032401,0.09,3283.8,3283.2,0.7945]
[1736715032602,0.09,3283.8,3283.5,0.03913736]
[1736715032803,0.09,3283.8,3283.2,0.7945]
[1736715033003,2.22167,3283.8,3283.6,0.03913736]
[1736715033254,2.22167,3283.8,3283.2,0.7945]
[1736715033449,2.22167,3283.8,3283.7,0.03913736]
[1736715033752,2.22167,3283.8,3283.2,0.7945]
[1736715034164,2.22167,3283.8,3283.3,0.03913736]
[1736715034311,2.22167,3283.8,3283.2,0.7945]
[1736715034660,0.09,3283.8,3283.3,0.03913736]
[1736715035267,0.09,3283.8,3283.4,0.03896834]
[1736715035610,2.22168,3283.8,3283.2,0.7945]
[1736715035921,2.22168,3283.8,3283.5,0.03896834]
[1736715036137,2.22168,3283.8,3283.2,0.7945]
[1736715036333,2.22168,3283.8,3283.6,0.03896834]
[1736715036535,2.22168,3283.8,3283.2,0.7945]
[1736715036740,2.22168,3283.8,3283.7,0.03896834]
[1736715036921,2.22168,3283.8,3283.2,0.7945]
[1736715037331,2.22168,3283.8,3283.3,0.03896834]
[1736715037681,2.22168,3283.8,3283.2,0.7945]
[1736715037973,0.09,3283.8,3283.4,0.03896834]
[1736715038170,0.09,3283.8,3283.2,0.82495508]
[1736715038376,0.09,3283.8,3283.3,0.65946385]
[1736715038570,0.09,3283.8,3283.3,0.62049551]
[1736715038736,0.09,3283.8,3283.3,0.65946385]
[1736715039120,2.22168,3283.8,3283.3,0.65946385]
[1736715039542,0.09,3283.8,3283.3,0.65946385]
[1736715047118,3.42648642,3283.8,3283.3,0.03896834]
[1736715047291,0.8052,3283.7,3283.3,0.03896834]
[1736715047472,0.8052,3283.7,3283.1,5.38]
[1736715048106,0.8052,3283.7,3283.2,0.03757005]
[1736715048318,2.93694,3283.7,3283.2,0.03757005]
[1736715048614,3.33660642,3283.6,3283.2,0.03757005]
[1736715050212,1.20479642,3283.6,3283.2,0.03757005]
[1736715050419,0.8052,3283.7,3283.2,0.03757005]
[1736715052034,2.93695,3283.7,3283.2,0.03757005]
[1736715052634,1.20479642,3283.4,3283.2,0.03757005]
[1736715052813,0.8318,3283.3,3283.2,0.03757005]
[1736715053490,3.16745964,3283.3,3283.2,0.03757005]
[1736715056353,2.13224,3283.0,3282.4,5.38]
[1736715056553,3.33718642,3282.7,3282.1,0.7807]
[1736715056854,4.16904642,3282.6,3282.0,5.38]
[1736715057014,1.20479642,3282.4,3282.2,0.03792403]
[1736715057221,3.33738642,3282.4,3282.0,5.38]
[1736715057529,3.33738642,3282.4,3282.3,0.03792403]
[1736715057729,3.33738642,3282.4,3281.6,0.7807]
[1736715057730,0.8318,3282.3,3281.6,0.7807]
[1736715057928,1.20479642,3282.1,3281.6,0.7807]
[1736715058177,1.20479642,3282.1,3281.2,5.38]
[1736715058178,1.20479642,3281.9,3281.7,0.03857577]
[1736715058520,1.20479642,3281.9,3281.2,6.1607]
[1736715058826,2.03659642,3281.9,3281.8,0.03857577]
[1736715059057,2.45354106,3281.9,3281.2,6.1607]
[1736715059265,4.58645106,3281.9,3281.8,0.03857577]
[1736715059551,4.58645106,3281.9,3280.5,5.14131]
[1736715059552,0.09,3281.6,3281.0,0.7807]
[1736715064412,0.8318,3281.5,3280.7,0.7807]
[1736715064955,0.8318,3281.5,3280.7,6.1607]
[1736715065993,0.8318,3281.5,3280.8,0.03907143]
[1736715067056,0.8318,3281.5,3280.8,1.2339692]
[1736715067598,2.96497,3281.5,3280.8,0.03907143]
[1736715068903,0.8318,3281.5,3280.8,0.03907143]
[1736715074896,0.7805,3281.2,3280.8,0.03907143]
[1736715075867,0.7805,3281.5,3280.8,0.03907143]
[1736715078299,0.7805,3281.5,3280.8,0.06954865]
[1736715078606,0.7805,3281.5,3280.9,0.83651786]
[1736715078808,0.7805,3281.5,3280.9,0.87636242]
[1736715081703,0.09,3281.6,3281.0,2.94595613]
[1736715082105,0.09,3281.6,3281.1,0.03860692]
[1736715085961,0.09,3281.7,3281.1,0.03860692]
[1736715086137,0.09,3281.7,3281.1,0.77279332]
[1736715087132,0.09,3281.7,3281.1,0.7423194]
[1736715087479,0.09,3281.7,3281.1,0.77279333]
[1736715088760,0.7805,3281.6,3281.1,0.7423194]
[1736715093897,0.7805,3281.6,3281.2,0.29062833]
[1736715094281,0.7805,3281.6,3281.3,0.03817219]
[1736715098600,0.09,3281.7,3281.3,0.03817219]
[1736715098776,0.8949,3281.9,3281.4,0.03047184]
[1736715098954,0.8949,3281.9,3281.4,0.89756408]
[1736715099276,0.8949,3281.9,3281.5,0.03817219]
[1736715102968,0.09,3281.9,3281.5,0.06864204]
[1736715104213,0.9223,3282.1,3281.5,0.06864204]
[1736715104397,0.9223,3282.1,3281.6,0.42742967]
[1736715104709,0.9223,3282.1,3281.7,0.03789046]
[1736715105433,0.9223,3282.1,3281.4,0.86709224]
[1736715105636,0.9223,3282.1,3281.8,0.03789046]
[1736715105913,0.9223,3282.1,3281.4,0.86709224]
[1736715106212,0.9223,3282.1,3281.9,0.03789046]
[1736715106509,0.9223,3282.1,3282.0,0.03789046]
[1736715106808,2.94452,3281.9,3281.3,5.38]
[1736715107009,4.14988243,3281.9,3281.3,5.38]
[1736715107312,4.14988243,3281.9,3281.4,0.03766509]
[1736715108115,0.8116,3281.8,3281.4,0.03766509]
[1736715108613,0.8116,3281.5,3281.4,0.03766509]
[1736715110286,0.8116,3281.5,3281.0,0.03047544]
[1736715110522,0.8116,3281.5,3281.4,0.03767314]
[1736715110729,0.8116,3281.5,3281.0,0.03047544]
[1736715110940,0.8116,3281.5,3281.4,0.03789851]
[1736715111236,0.8116,3281.9,3281.0,0.03047544]
[1736715111401,0.8116,3281.9,3281.4,0.03789851]
[1736715111598,0.8116,3281.9,3281.3,0.85497122]
[1736715111800,0.8116,3281.9,3281.4,0.03789851]
[1736715116434,0.8116,3281.9,3281.4,0.06836983]
[1736715119354,0.8116,3281.9,3281.4,0.03789851]
[1736715119711,0.8116,3281.9,3281.4,0.06836986]
[1736715119912,0.8116,3281.9,3281.4,0.90899085]
[1736715122053,0.8116,3281.9,3281.4,0.8785195]
[1736715124670,0.8116,3281.9,3281.4,0.03789851]
[1736715125070,4.76943512,3282.1,3281.4,0.03789851]
[1736715125244,2.91177,3281.5,3281.4,0.03789851]
[1736715125958,3.00177,3281.5,3281.4,0.03789851]
[1736715126133,3.301947,3281.5,3281.4,0.03789851]
[1736715126468,2.13331,3281.3,3280.4,8.33578]
[1736715126652,0.7934,3281.2,3280.5,0.03780193]
[1736715127478,2.13343,3281.1,3280.5,0.03780193]
[1736715127661,0.7934,3281.0,3280.5,0.03780193]
[1736715128489,0.7934,3281.0,3280.5,0.61006144]
[1736715128689,0.7934,3281.3,3280.6,0.8219]
[1736715129035,0.7934,3281.3,3280.7,0.03780193]
[1736715129643,0.7934,3281.3,3280.7,0.06828126]
[1736715130743,0.7934,3281.3,3280.7,0.03780193]
[1736715130949,0.09,3281.2,3280.7,0.03780193]
[1736715132702,0.09,3281.2,3280.8,2.91632]
[1736715132867,0.09,3281.2,3280.9,0.33672077]
[1736715134693,0.09,3281.2,3280.9,0.03826079]
[1736715136881,0.09,3281.4,3280.9,0.03826079]
[1736715143198,2.13338,3281.2,3280.9,0.03826079]
[1736715143367,2.13346,3281.1,3280.9,0.03826079]
[1736715143566,2.1335,3281.0,3280.7,5.38]
[1736715143765,0.7787,3280.9,3280.7,5.38]
[1736715145811,0.7787,3280.9,3280.4,5.38]
[1736715145812,0.09,3280.8,3280.4,5.38]
[1736715147826,0.09,3280.8,3280.0,0.59747236]
[1736715148029,2.13369,3280.7,3280.0,1.38017236]
[1736715149713,0.09,3280.8,3280.0,1.38017236]
[1736715150729,0.09,3280.8,3280.0,2.2696136]
[1736715155726,0.09,3280.8,3280.1,0.03905782]
[1736715162490,0.09,3280.8,3280.2,1.20615452]
[1736715162832,0.09,3280.8,3280.4,0.7875]
[1736715163409,0.09,3280.8,3280.5,0.03905782]
[1736715163605,0.09,3280.8,3280.5,0.33814873]
[1736715163806,0.09,3281.0,3280.5,0.33814873]
[1736715164336,0.09,3281.0,3280.6,1.23663528]
[1736715164507,0.09,3281.0,3280.8,0.7875]
[1736715164713,0.09,3281.2,3280.8,0.7875]
[1736715164943,0.09,3281.2,3280.9,0.33114362]
[1736715165943,0.09,3281.2,3280.9,0.03902562]
[1736715169551,0.09,3281.2,3280.7,2.13367]
[1736715169710,0.09,3281.2,3280.8,0.03929939]
[1736715169910,0.09,3281.4,3280.8,0.03929939]
[1736715177409,0.09,3281.4,3280.9,0.03047739]
[1736715177618,0.09,3281.4,3280.9,0.75833968]
[1736715177842,0.09,3281.4,3281.0,0.03907393]
[1736715180731,0.09,3281.4,3280.7,7.51369]
[1736715180937,0.09,3281.4,3280.8,0.03888872]
[1736715182067,0.09,3281.4,3280.8,5.41888872]
[1736715182224,0.09,3281.4,3280.8,6.03952759]
[1736715189208,0.09,3281.4,3280.9,0.03047618]
[1736715189500,2.22329,3281.4,3280.8,5.41888872]
[1736715189686,2.22329,3281.4,3281.0,0.0388082]
[1736715190004,2.22329,3281.4,3280.8,5.38]
[1736715190206,0.09,3281.4,3281.1,0.0388082]
[1736715190374,2.9245,3281.3,3280.8,5.38]
[1736715190696,0.7912,3281.2,3280.9,0.0388082]
[1736715193866,0.09,3281.1,3280.9,0.0388082]
[1736715194276,0.09,3281.1,3280.5,0.03047946]
[1736715194482,0.09,3281.1,3281.0,0.0388082]
[1736715195104,0.09,3281.1,3280.5,0.03047946]
[1736715195337,0.09,3281.1,3281.0,0.0388082]
[1736715195537,0.09,3281.1,3280.5,0.03047946]
[1736715195737,0.09,3281.1,3280.8,0.7625]
[1736715196038,0.09,3281.1,3280.9,3.40837556]
[1736715196842,0.09,3281.1,3280.9,2.20281667]
[1736715197140,0.09,3281.1,3281.0,0.29653167]
[1736715197337,0.09,3281.1,3281.0,0.33531572]
[1736715198712,0.09,3281.1,3281.0,2.46880572]
[1736715199942,0.09,3281.6,3281.0,2.46880572]
[1736715200517,0.09,3281.6,3281.1,0.03047528]
[1736715200718,0.09,3281.6,3281.2,0.7625]
[1736715200924,0.09,3281.6,3281.3,2.16373408]
[1736715201098,0.09,3281.6,3281.3,0.06891999]
[1736715201304,0.09,3281.6,3281.3,0.03844591]
[1736715212707,0.09,3281.6,3281.3,2.20220797]
[1736715212909,0.09,3281.6,3281.4,0.57702352]
[1736715213319,0.09,3281.6,3281.5,0.03843786]
[1736715217710,0.09,3281.8,3281.3,2.13329]
[1736715217933,0.09,3281.8,3281.5,0.03807559]
[1736715218140,0.09,3281.8,3281.3,2.13329]
[1736715218453,0.09,3281.8,3281.3,3.1784585]
[1736715218618,0.09,3281.8,3281.4,0.03807559]
[1736715240201,0.09,3281.8,3281.5,6.19307197]
[1736715240403,0.09,3281.8,3281.7,3.33859889]
[1736715240679,0.09,3281.8,3281.7,4.189484]
[1736715240844,0.09,3281.8,3281.7,5.1464324]
[1736715243008,0.09,3281.8,3281.7,3.94087351]
[1736715243187,0.09,3282.4,3281.7,10.5264324]
[1736715243479,0.09,3282.4,3281.7,10.49593533]
[1736715243778,0.09,3282.4,3281.7,8.36292533]
[1736715243981,0.09,3282.4,3281.8,0.80604803]
[1736715244358,0.09,3282.4,3281.9,0.03742372]
[1736715244759,0.09,3282.4,3281.8,2.93901803]
[1736715244972,0.09,3282.4,3282.0,0.03742372]
[1736715245193,0.09,3282.4,3281.8,2.93901803]
[1736715245509,0.09,3282.4,3281.9,0.9569484]
[1736715245705,0.09,3282.4,3281.9,0.99437212]
[1736715247588,0.09,3282.4,3282.0,0.03046576]
[1736715247907,0.09,3282.4,3282.0,5.41046576]
[1736715248106,0.09,3282.4,3282.1,0.03742372]
[1736715248759,0.09,3282.4,3282.1,1.43450751]
[1736715249098,0.09,3282.4,3282.2,0.0304636]
[1736715249328,0.09,3282.4,3282.2,0.06780687]
[1736715252891,0.09,3282.6,3282.2,5.44780687]
[1736715253225,0.60916523,3283.5,3282.2,5.44780687]
[1736715253226,0.09,3282.5,3282.4,8.31758]
[1736715253634,0.09,3282.5,3282.4,8.35427952]
[1736715256709,0.7868,3282.9,3282.4,7.54927952]
[1736715261951,0.7868,3282.9,3282.4,8.32577952]
[1736715262648,0.09,3282.8,3282.4,8.32577952]
[1736715262835,0.09,3282.8,3282.5,0.91308245]
[1736715263235,0.09,3282.8,3282.6,0.03633752]
[1736715266314,0.09,3282.8,3282.6,0.06679786]
[1736715266534,0.09,3282.8,3282.6,0.03633752]
[1736715267807,0.09,3282.8,3282.6,2.19923778]
[1736715268012,0.09,3282.8,3282.7,0.31123202]
[1736715268214,0.09,3282.8,3282.7,0.34730407]
[1736715268537,0.09,3282.8,3282.7,0.03607205]
[1736715268734,0.09,3283.1,3282.7,0.03607205]
[1736715269052,0.09,3283.1,3282.8,0.03607205]
[1736715269217,0.09,3283.1,3282.5,0.91308245]
[1736715269740,0.09,3283.1,3282.6,0.06653224]
[1736715270127,0.09,3283.1,3282.7,0.31121047]
[1736715270653,0.09,3283.1,3282.8,0.03607205]
[1736715270952,0.09,3283.1,3282.7,0.31121047]
[1736715271144,0.09,3283.1,3282.9,0.03607205]
[1736715271354,0.09,3283.1,3282.5,3.04557245]
[1736715271527,0.09,3283.1,3283.0,0.03607205]
[1736715271729,0.09,3283.1,3282.5,3.04557245]
[1736715271934,0.09,3283.1,3283.0,0.03607205]
[1736715272130,0.7958,3283.0,3282.5,3.04557245]
[1736715274357,0.09,3283.1,3282.6,0.03046017]
[1736715274560,0.09,3283.1,3282.8,2.1323]
[1736715274729,0.09,3283.1,3282.8,7.5123]
[1736715275621,0.09,3283.1,3282.9,0.03590315]
[1736715283666,0.09,3283.1,3282.9,2.16815315]
[1736715283967,0.09,3283.1,3282.9,2.19861143]
[1736715284162,0.09,3283.1,3283.0,0.83717114]
[1736715284523,0.09,3283.1,3283.0,0.87277673]
[1736715297930,0.8775,3283.1,3283.0,0.03560559]
[1736715298270,0.8775,3283.1,3282.8,5.38]
[1736715298472,0.8775,3283.1,3282.9,0.03525177]